bitfinex-derivatives/quotes_SOLF0:USTF0_20260117
["timestamp","ask_amount","ask_price","bid_price","bid_amount"]
[1768689035242,3.24671725,143.72,143.66,3.21310139]
[1768689035645,3.24671725,143.72,143.67,3.21310139]
[1768689035842,3.24671725,143.75,143.67,3.21310139]
[1768689036149,3.24671725,143.75,143.68,4.94822419]
[1768689036648,3.24671725,143.75,143.68,1.7351228]
[1768689036944,3.24671725,143.74,143.68,1.7351228]
[1768689037150,3.24671725,143.74,143.68,3.21310139]
[1768689037752,3.24671725,143.74,143.7,0.05031501]
[1768689038751,3.24671725,143.76,143.7,3.2634164]
[1768689041753,3.24671725,143.75,143.7,3.2634164]
[1768689044847,9.50871725,143.78,143.7,3.2634164]
[1768689045350,9.50901725,143.77,143.7,3.2634164]
[1768689045549,9.50901725,143.77,143.7,4.9985392]
[1768689045852,9.50901725,143.77,143.7,4.94822419]
[1768689046042,9.50901725,143.77,143.71,3.21310139]
[1768689063063,3.24671725,143.77,143.71,3.21310139]
[1768689064158,3.20757502,143.76,143.69,3.09273881]
[1768689070666,9.46947502,143.78,143.69,9.35803881]
[1768689070973,4.94269782,143.78,143.7,3.09273881]
[1768689071161,3.20757502,143.77,143.7,3.09273881]
[1768689071968,3.20757502,143.79,143.72,3.09273881]
[1768689072566,3.20757502,143.79,143.73,3.09273881]
[1768689073968,3.20757502,143.81,143.73,3.09273881]
[1768689075775,3.20757502,143.84,143.76,3.09273881]
[1768689076073,3.20757502,143.84,143.77,3.09273881]
[1768689077572,3.20757502,143.84,143.78,3.09273881]
[1768689077772,3.20757502,143.86,143.78,3.09273881]
[1768689078174,3.20757502,143.84,143.76,3.09273881]
[1768689078370,1.7351228,143.83,143.76,3.09273881]
[1768689078676,3.20757502,143.86,143.77,3.09273881]
[1768689078874,3.20757502,143.85,143.78,3.09273881]
[1768689079072,4.94269782,143.85,143.78,3.09273881]
[1768689079676,3.20757502,143.85,143.79,3.09273881]
[1768689080581,3.20757502,143.85,143.81,0.05217377]
[1768689101404,3.24758958,143.82,143.75,2.99638791]
[1768689102906,0.04794896,143.8,143.75,2.99638791]
[1768689108310,0.04794896,143.8,143.75,9.25918791]
[1768689108513,0.04794896,143.8,143.76,2.99638791]
[1768689138242,2.98645529,143.84,143.76,2.99638791]
[1768689138439,4.72004416,143.84,143.76,2.99638791]
[1768689139754,4.72004416,143.84,143.77,6.2621]
[1768689139954,4.72004416,143.84,143.77,9.39236818]
[1768689140154,2.98645529,143.83,143.77,9.39236818]
[1768689145158,2.98645529,143.83,143.77,3.13026818]
[1768689147261,3.23193554,143.84,143.77,3.13026818]
[1768689147458,9.49053554,143.86,143.79,3.10661353]
[1768689149158,3.23193554,143.85,143.79,3.10661353]
[1768689150755,6.2586,143.86,143.79,3.10661353]
[1768689153066,3.23193554,143.87,143.81,3.10661353]
[1768689159265,3.21249435,143.9,143.83,3.0807184]
[1768689159468,3.21249435,143.83,143.76,3.0807184]
[1768689159667,3.21249435,143.84,143.76,3.0807184]
[1768689160771,3.21249435,143.82,143.76,9.3431184]
[1768689165174,3.21249435,143.82,143.77,3.0807184]
[1768689175273,9.42988763,143.86,143.79,3.12078183]
[1768689175578,4.90529541,143.83,143.76,3.12078183]
[1768689176773,4.90529541,143.83,143.76,9.38298183]
[1768689188286,3.17138763,143.83,143.76,9.38298183]
[1768689192594,3.17138763,143.83,143.77,3.12078183]
[1768689193795,9.43108763,143.83,143.77,3.12078183]
[1768689209303,3.17887155,143.82,143.77,3.12078183]
[1768689216520,3.17887155,143.82,143.78,0.04527008]
[1768689244236,3.17994794,143.84,143.78,1.77940452]
[1768689244434,3.17994794,143.84,143.78,3.26471119]
[1768689244634,3.17994794,143.84,143.78,11.26044563]
[1768689244838,3.17994794,143.83,143.78,0.04527008]
[1768689266858,9.43954794,143.83,143.78,0.04527008]
[1768689268250,3.01650759,143.82,143.78,0.04527008]
[1768689274763,3.01650759,143.82,143.78,1.77944344]
[1768689276865,6.259,143.85,143.78,4.91863651]
[1768689276866,3.28220072,143.84,143.78,4.91863651]
[1768689280470,3.28220072,143.84,143.78,3.18446315]
[1768689298696,3.28220072,143.84,143.78,0.04527008]
[1768689300692,9.54140072,143.84,143.78,0.04527008]
[1768689300889,3.17404353,143.83,143.78,0.04527008]
[1768689306401,3.17404353,143.82,143.78,0.04527008]
[1768689318007,3.17404353,143.81,143.75,6.2629]
[1768689318213,3.22552742,143.81,143.75,6.2629]
[1768689318810,3.22552742,143.81,143.75,9.30477102]
[1768689320917,3.22552742,143.81,143.75,3.04187102]
[1768689328323,3.22552742,143.81,143.74,7.99722822]
[1768689329428,3.22552742,143.81,143.75,1.73440733]
[1768689333228,3.22552742,143.81,143.74,7.99770733]
[1768689333629,3.22552742,143.81,143.74,11.00731034]
[1768689335235,3.30797292,143.8,143.74,1.73440733]
[1768689335725,3.30797292,143.8,143.72,11.00801034]
[1768689336627,0.0475219,143.77,143.72,11.00801034]
[1768689338037,0.0475219,143.77,143.73,6.2637]
[1768689344637,0.0475219,143.77,143.72,4.74401034]
[1768689344934,0.0475219,143.77,143.72,3.00960301]
[1768689353348,0.0475219,143.77,143.72,9.27380301]
[1768689360664,0.0475219,143.77,143.72,3.00960301]
[1768689360859,3.15900558,143.77,143.72,3.00960301]
[1768689372071,3.15900558,143.77,143.7,266.18682076]
[1768689373871,3.11148368,143.76,143.7,266.18682076]
[1768689374267,9.37438368,143.76,143.7,3.16682076]
[1768689376574,3.11148368,143.75,143.7,3.16682076]
[1768689377576,0.04451177,143.74,143.7,3.16682076]
[1768689378976,3.15599545,143.74,143.69,1.73440733]
[1768689379179,3.15599545,143.74,143.69,4.90122809]
[1768689380974,3.15599545,143.74,143.69,3.16682076]
[1768689384879,3.15599545,143.74,143.67,4.72096498]
[1768689385079,3.15599545,143.74,143.68,2.98655765]
[1768689386780,3.0385669,143.73,143.65,2.98655765]
[1768689387079,3.0385669,143.73,143.66,1.73440733]
[1768689387681,0.04880369,143.71,143.66,1.73440733]
[1768689390682,0.04880369,143.71,143.65,2.98655765]
[1768689390874,0.04880369,143.71,143.66,1.73440733]
[1768689391282,0.04880369,143.71,143.66,1.7364606]
[1768689391778,3.0385669,143.7,143.63,2.98655765]
[1768689391970,0.04880369,143.71,143.65,2.98655765]
[1768689392371,3.0385669,143.72,143.65,2.98655765]
[1768689392779,0.04785482,143.69,143.65,2.98655765]
[1768689393182,0.04785482,143.69,143.66,4.72301825]
[1768689393486,3.0385669,143.72,143.67,2.98655765]
[1768689395282,9.56494011,143.73,143.67,2.98655765]
[1768689397084,3.30084011,143.72,143.65,6.2672]
[1768689397289,3.30084011,143.72,143.65,9.53666417]
[1768689398984,3.30084011,143.72,143.65,3.26946417]
[1768689401984,3.30084011,143.72,143.66,3.26946417]
[1768689421098,5.04037156,143.74,143.67,3.1081285]
[1768689421305,3.30391096,143.74,143.67,3.1081285]
[1768689422906,3.30391096,143.74,143.68,3.1081285]
[1768689433511,3.30391096,143.74,143.67,6.2663]
[1768689433512,3.30391096,143.73,143.65,9.3751285]
[1768689433710,3.30391096,143.73,143.66,3.1081285]
[1768689435307,3.30391096,143.72,143.66,3.1081285]
[1768689443210,3.22179133,143.73,143.66,3.1081285]
[1768689444919,3.22179133,143.71,143.64,3.2846405]
[1768689449919,3.22179133,143.71,143.65,3.2846405]
[1768689456632,3.22179133,143.71,143.65,9.5519405]
[1768689469650,3.22179133,143.71,143.65,3.2846405]
[1768689476359,3.0033941,143.7,143.65,3.2846405]
[1768689476549,3.0033941,143.7,143.63,6.2679]
[1768689476753,3.0033941,143.69,143.62,3.07461481]
[1768689477961,3.0033941,143.69,143.62,4.81163227]
[1768689478144,3.0033941,143.69,143.62,3.07461481]
[1768689478343,3.0033941,143.69,143.63,3.07461481]
[1768689480561,3.0033941,143.71,143.63,3.07461481]
[1768689480852,3.0033941,143.71,143.65,3.07461481]
[1768689484367,3.0033941,143.71,143.58,3.07461481]
[1768689484368,1.73701746,143.68,143.58,3.07461481]
[1768689484563,97.4528,143.71,143.61,3.07461481]
[1768689484564,3.0033941,143.67,143.61,3.07461481]
[1768689484758,3.0033941,143.69,143.61,3.07461481]
[1768689485066,3.0033941,143.72,143.63,3.07461481]
[1768689485960,3.0033941,143.72,143.64,3.07461481]
[1768689486361,3.0033941,143.7,143.64,3.07461481]
[1768689488569,3.0033941,143.7,143.62,3.07461481]
[1768689493966,3.0033941,143.7,143.59,3.07461481]
[1768689494172,3.0033941,143.7,143.58,103.807]
[1768689494173,3.0033941,143.7,143.62,1.73701746]
[1768689494373,3.0033941,143.7,143.63,3.07461481]
[1768689494562,3.0033941,143.7,143.63,3.12541133]
[1768689495566,3.0033941,143.7,143.63,4.86242879]
[1768689497678,3.0033941,143.7,143.64,3.07461481]
[1768689501477,3.0033941,143.7,143.59,3.07461481]
[1768689501783,3.0033941,143.67,143.6,3.07461481]
[1768689503188,0.05254833,143.65,143.6,3.07461481]
[1768689503381,0.05254833,143.65,143.61,3.00024546]
[1768689504791,3.3380177,143.65,143.59,3.00024546]
[1768689505280,6.2663,143.68,143.61,3.00024546]
[1768689505582,9.55176937,143.68,143.61,3.00024546]
[1768689505782,11.28878683,143.68,143.61,3.00024546]
[1768689506084,3.28546937,143.67,143.61,3.00024546]
[1768689508986,3.28546937,143.69,143.61,3.00024546]
[1768689509994,8.44481066,143.68,143.61,3.00024546]
[1768689510282,3.28546937,143.68,143.61,3.00024546]
[1768689510688,5.02248683,143.68,143.61,3.00024546]
[1768689511289,3.28546937,143.67,143.57,280.09560704]
[1768689511485,3.28546937,143.64,143.57,19.8758525]
[1768689511680,3.28546937,143.64,143.58,3.00024546]
[1768689512490,3.28546937,143.64,143.59,3.00024546]
[1768689514476,3.25364405,143.66,143.59,3.00024546]
[1768689514681,3.25364405,143.64,143.57,20.02747498]
[1768689516477,3.25364405,143.62,143.57,16.63363366]
[1768689518084,4.9916753,143.62,143.57,16.63363366]
[1768689518281,3.25364405,143.61,143.57,6.13263366]
[1768689520986,3.25364405,143.61,143.53,3.15186794]
[1768689521290,3.25364405,143.6,143.53,3.15186794]
[1768689522385,3.25364405,143.59,143.53,3.15186794]
[1768689523289,6.2698,143.6,143.53,3.15186794]
[1768689523693,6.2698,143.6,143.53,4.88989919]
[1768689523990,6.2698,143.6,143.54,3.15186794]
[1768689526290,9.52344405,143.6,143.54,3.15186794]
[1768689527883,3.25364405,143.6,143.54,3.15186794]
[1768689529686,3.25364405,143.6,143.52,11.16269919]
[1768689530085,3.25364405,143.6,143.53,3.15186794]
[1768689530793,3.25364405,143.58,143.5,9.42556794]
[1768689530994,3.25364405,143.58,143.5,3.15186794]
[1768689532788,3.25364405,143.58,143.52,6.2729]
[1768689532988,3.25364405,143.58,143.52,9.30323704]
[1768689533291,3.25364405,143.58,143.53,3.03033704]
[1768689536304,3.25364405,143.58,143.52,6.2729]
[1768689536598,3.25348261,143.56,143.52,6.2729]
[1768689536894,3.25348261,143.56,143.5,6.2736]
[1768689537093,4.99151386,143.55,143.5,6.2736]
[1768689537302,4.99151386,143.55,143.49,3.03033704]
[1768689537894,3.25348261,143.55,143.49,3.03033704]
[1768689540805,3.25348261,143.57,143.49,3.03033704]
[1768689540991,3.25348261,143.57,143.5,3.03033704]
[1768689547407,9.52368261,143.59,143.52,3.03033704]
[1768689548008,3.25348261,143.59,143.52,3.03033704]
[1768689549308,1.73803125,143.57,143.5,9.30413704]
[1768689549504,3.25348261,143.57,143.5,9.30413704]
[1768689549704,3.25348261,143.57,143.51,3.03033704]
[1768689565527,3.25348261,143.57,143.49,4.79308501]
[1768689565727,3.25348261,143.57,143.5,3.05505376]
[1768689565929,3.30193742,143.55,143.5,3.05505376]
[1768689566227,3.30193742,143.55,143.48,4.79308501]
[1768689566614,9.57373742,143.55,143.48,4.79308501]
[1768689567027,9.57373742,143.55,143.49,3.05505376]
[1768689567221,9.57373742,143.55,143.49,4.79308501]
[1768689568520,9.57373742,143.55,143.49,3.05505376]
[1768689568721,3.30193742,143.53,143.46,3.05505376]
[1768689568921,3.30193742,143.53,143.47,3.05505376]
[1768689569122,3.30193742,143.53,143.47,4.79308501]
[1768689569925,3.30193742,143.57,143.48,3.05505376]
[1768689570225,3.30193742,143.55,143.48,3.05505376]
[1768689570827,97.5441,143.58,143.48,3.05505376]
[1768689571122,3.30193742,143.58,143.5,3.05505376]
[1768689571724,3.30193742,143.58,143.51,9.32845376]
[1768689573040,1.73803125,143.57,143.51,3.05505376]
[1768689573229,5.03996867,143.57,143.51,3.05505376]
[1768689573425,5.04240366,143.57,143.51,3.05505376]
[1768689576130,3.30193742,143.57,143.51,3.05505376]
[1768689576326,5.04240366,143.57,143.51,3.05505376]
[1768689578031,3.30193742,143.57,143.51,3.05505376]
[1768689590240,3.15031534,143.56,143.51,3.05505376]
[1768689600245,3.09085627,143.58,143.52,3.15906464]
[1768689600742,3.09085627,143.58,143.52,3.20526162]
[1768689601138,3.09085627,143.58,143.52,9.47816162]
[1768689601546,3.09085627,143.58,143.53,3.15906464]
[1768689603148,3.09085627,143.6,143.54,3.15906464]
[1768689607853,3.09085627,143.6,143.54,9.43096464]
[1768689608755,3.09085627,143.6,143.55,3.15906464]
[1768689612055,4.83132251,143.66,143.57,3.15906464]
[1768689612250,3.09085627,143.65,143.57,3.15906464]
[1768689612558,6.268,143.64,143.57,3.15906464]
[1768689612949,3.09085627,143.65,143.57,3.15906464]
[1768689614142,3.09085627,143.65,143.58,3.15906464]
[1768689615850,3.09085627,143.65,143.59,6.2699]
[1768689616054,3.09085627,143.65,143.59,9.42896464]
[1768689617460,3.09085627,143.65,143.59,3.15906464]
[1768689623262,3.09085627,143.65,143.6,3.09868434]
[1768689629359,4.83132251,143.65,143.6,3.09868434]
[1768689629861,3.09085627,143.65,143.6,3.09868434]
[1768689634566,3.15623427,143.68,143.61,3.16105966]
[1768689634756,4.89670051,143.67,143.61,3.16105966]
[1768689634962,3.15623427,143.67,143.61,3.16105966]
[1768689635861,3.15623427,143.67,143.61,9.43005966]
[1768689637866,4.89421923,143.69,143.62,3.16105966]
[1768689638369,3.15623427,143.69,143.62,3.16105966]
[1768689640173,3.15623427,143.69,143.63,3.16105966]
[1768689641677,1.73798496,143.7,143.64,3.16105966]
[1768689642069,4.89421923,143.7,143.64,3.16105966]
[1768689642476,3.15623427,143.7,143.64,3.16105966]
[1768689643973,3.15623427,143.7,143.65,6.2672]
[1768689644573,3.15623427,143.7,143.65,9.42825966]
[1768689644976,3.15623427,143.72,143.66,3.16105966]
[1768689645179,4.89421923,143.72,143.66,3.16105966]
[1768689645581,3.15623427,143.71,143.66,3.16105966]
[1768689645773,3.15623427,143.71,143.68,0.04465272]
[1768689651183,4.89421923,143.72,143.68,0.04465272]
[1768689651780,3.15623427,143.72,143.68,0.04465272]
[1768689652984,4.92099026,143.71,143.68,0.04465272]
[1768689653187,3.1830053,143.71,143.68,0.04465272]
[1768689653380,4.92099026,143.71,143.68,0.04465272]
[1768689653580,3.1830053,143.71,143.68,0.04465272]
[1768689655383,4.92099026,143.72,143.68,0.04465272]
[1768689658796,3.1830053,143.71,143.68,0.04465272]
[1768689659496,3.1830053,143.74,143.68,0.04465272]
[1768689659987,3.1830053,143.74,143.66,9.42775966]
[1768689660188,3.1830053,143.74,143.66,6.2667]
[1768689660389,3.1830053,143.7,143.64,6.2676]
[1768689661791,3.1830053,143.7,143.65,3.04228074]
[1768689667002,3.1830053,143.7,143.64,6.2676]
[1768689670299,3.1830053,143.69,143.64,6.2676]
[1768689671403,3.1830053,143.69,143.62,9.31058074]
[1768689676008,3.1830053,143.69,143.63,3.04228074]
[1768689679303,3.1830053,143.69,143.63,9.31038074]
[1768689679704,3.1830053,143.69,143.64,3.04228074]
[1768689684010,3.1830053,143.69,143.64,9.30978074]
[1768689684310,2.99452166,143.72,143.65,3.25304082]
[1768689689206,2.99452166,143.72,143.65,9.52034082]
[1768689691017,2.99452166,143.72,143.66,6.2668]
[1768689694625,2.99452166,143.72,143.66,9.51962997]
[1768689695720,2.99452166,143.72,143.67,3.25282997]
[1768689695922,3.20390048,143.74,143.68,3.25282997]
[1768689697223,3.20390048,143.74,143.68,9.51872997]
[1768689701924,3.20390048,143.74,143.69,6.2655]
[1768689703023,3.20390048,143.74,143.68,3.25282997]
[1768689708627,4.94066024,143.76,143.68,3.25282997]
[1768689709029,3.20390048,143.75,143.68,3.25282997]
[1768689711530,3.20390048,143.75,143.68,9.51882997]
[1768689711732,3.20390048,143.75,143.69,3.25282997]
[1768689714127,2.98481489,143.77,143.71,3.04771072]
[1768689715434,2.98481489,143.77,143.72,3.04771072]
[1768689715837,4.72157465,143.79,143.72,3.04771072]
[1768689716737,4.72157465,143.79,143.73,3.04771072]
[1768689716937,2.98481489,143.79,143.73,3.04771072]
[1768689721436,2.98481489,143.79,143.73,9.31151072]
[1768689721637,2.98481489,143.79,143.74,3.04771072]
[1768689721941,2.98481489,143.81,143.74,3.04771072]
[1768689724345,2.98481489,143.8,143.74,3.04771072]
[1768689730259,6.2605,143.81,143.74,3.04771072]
[1768689730561,9.24531489,143.81,143.74,3.04771072]
[1768689732262,2.98481489,143.83,143.75,3.04771072]
[1768689733854,2.98481489,143.81,143.75,3.04771072]
[1768689735662,9.24531489,143.81,143.75,3.04771072]
[1768689740059,9.24531489,143.81,143.77,0.04864174]
[1768689740262,2.98481489,143.82,143.77,3.09635246]
[1768689740663,2.98481489,143.82,143.77,0.04864174]
[1768689741965,9.24491489,143.82,143.77,0.04864174]
[1768689754269,3.24139818,143.81,143.77,0.04864174]
[1768689754469,3.24139818,143.79,143.73,3.08122371]
[1768689755876,9.50279818,143.79,143.73,3.08122371]
[1768689760178,9.50319818,143.78,143.73,3.08122371]
[1768689761082,0.04642192,143.77,143.73,3.08122371]
[1768689763375,9.50219818,143.81,143.73,3.08122371]
[1768689763677,3.24139818,143.8,143.74,3.12767296]
[1768689764981,3.24139818,143.79,143.74,3.12767296]
[1768689766185,3.24139818,143.79,143.74,0.04644925]
[1768689773289,3.24139818,143.79,143.74,3.34416011]
[1768689774993,6.261,143.8,143.74,3.34416011]
[1768689775582,9.46296667,143.8,143.74,3.34416011]
[1768689776190,6.261,143.8,143.74,3.34416011]
[1768689776605,3.20196667,143.82,143.75,3.29771086]
[1768689777403,3.20196667,143.82,143.76,3.29771086]
[1768689798726,6.2598,143.83,143.76,3.29771086]
[1768689798922,3.20196667,143.84,143.76,3.29771086]
[1768689799121,3.20196667,143.84,143.77,3.29771086]
[1768689801924,3.20196667,143.84,143.77,9.55951086]
[1768689802321,3.20196667,143.84,143.78,2.98789471]
[1768689825242,3.20206162,143.82,143.76,3.23244602]
[1768689825441,3.20206162,143.82,143.73,3.23244602]
[1768689825645,1.73386472,143.81,143.73,3.23244602]
[1768689825844,4.93592634,143.81,143.73,3.23244602]
[1768689826246,4.93592634,143.81,143.75,9.49534602]
[1768689827741,3.20206162,143.81,143.75,9.49534602]
[1768689828250,3.20206162,143.81,143.76,3.23244602]
[1768689830646,3.20206162,143.83,143.77,3.23244602]
[1768689831744,3.20206162,143.83,143.78,3.23244602]
[1768689834051,2.98532429,143.85,143.79,3.1405411]
[1768689834755,4.71918901,143.87,143.81,0.04834614]
[1768689834961,2.98532429,143.86,143.81,0.04834614]
[1768689842656,2.98532429,143.85,143.77,1.73386472]
[1768689842861,3.03021284,143.85,143.77,1.73386472]
[1768689843463,3.03021284,143.85,143.77,4.87440582]
[1768689843657,3.03021284,143.85,143.77,3.1405411]
[1768689843857,2.98532429,143.84,143.77,3.1405411]
[1768689844257,4.71918901,143.84,143.77,3.1405411]
[1768689844857,0.05227272,143.82,143.77,3.1405411]
[1768689848362,3.03759701,143.82,143.77,3.1405411]
[1768689852561,3.03759701,143.82,143.75,4.87440582]
[1768689853366,3.03759701,143.82,143.76,3.1405411]
[1768689853563,3.03759701,143.82,143.72,262.92]
[1768689853768,2.98532429,143.78,143.69,3.1405411]
[1768689854068,2.98532429,143.76,143.69,3.1405411]
[1768689854264,2.98532429,143.74,143.69,3.1405411]
[1768689854466,2.98532429,143.74,143.68,1.73386472]
[1768689854768,3.03607248,143.75,143.69,3.1405411]
[1768689857464,3.03607248,143.75,143.67,11.14070582]
[1768689861175,3.03607248,143.75,143.68,3.1405411]
[1768689872882,3.03607248,143.75,143.68,9.4063411]
[1768689873082,3.17028349,143.74,143.68,9.4063411]
[1768689881689,3.17028349,143.74,143.68,6.2658]
[1768689890601,1.78714688,143.75,143.69,3.06817988]
[1768689890800,3.07476608,143.75,143.69,3.06817988]
[1768689893302,8.46178579,143.74,143.69,3.06817988]
[1768689893502,3.29627088,143.74,143.69,3.06817988]
[1768689896299,5.1757231,143.73,143.69,3.06817988]
[1768689896500,3.29627088,143.74,143.69,3.06817988]
[1768689896707,5.17562321,143.73,143.69,3.06817988]
[1768689896898,3.29627088,143.74,143.69,3.06817988]
[1768689897099,5.1757231,143.73,143.69,3.06817988]
[1768689897300,3.29627088,143.74,143.69,3.06817988]
[1768689897498,5.18097638,143.73,143.69,3.06817988]
[1768689897697,3.29627088,143.74,143.69,3.06817988]
[1768689897898,5.18097638,143.73,143.69,3.06817988]
[1768689898208,5.18941041,143.72,143.69,3.06817988]
[1768689898409,3.29627088,143.74,143.69,3.06817988]
[1768689898606,5.18939957,143.73,143.69,3.06817988]
[1768689898802,5.18939957,143.72,143.69,3.06817988]
[1768689899007,3.29627088,143.74,143.69,3.06817988]
[1768689899309,5.23557813,143.73,143.69,3.06817988]
[1768689899508,5.18939957,143.72,143.69,3.06817988]
[1768689900112,0.04617856,143.73,143.69,3.06817988]
[1768689900811,3.34244944,143.73,143.68,9.40130368]
[1768689902914,3.34244944,143.73,143.69,6.2655]
[1768689907021,3.34244944,143.73,143.68,3.13550368]
[1768689922627,0.04617856,143.73,143.68,3.13550368]
[1768689927126,3.33654922,143.73,143.68,3.13550368]
[1768689931331,3.33654922,143.73,143.66,6.2668]
[1768689931532,3.33654922,143.73,143.66,9.31897258]
[1768689939641,3.33654922,143.73,143.66,3.05217258]
[1768689940841,3.27147312,143.72,143.66,3.05217258]
[1768689946042,3.27147312,143.71,143.66,3.05217258]
[1768689946944,0.04586448,143.7,143.66,3.05217258]
[1768689947144,3.3173376,143.7,143.64,2.98225318]
[1768689949845,9.5826376,143.7,143.64,2.98225318]
[1768689954749,9.48428351,143.69,143.64,2.98225318]
[1768689954943,3.21858351,143.69,143.64,2.98225318]
[1768689964945,3.21858351,143.67,143.6,3.16800051]
[1768689965953,0.05198445,143.65,143.6,3.16800051]
[1768689969156,3.27056796,143.65,143.58,3.16800051]
[1768689969363,3.21858351,143.63,143.58,3.16800051]
[1768689970254,0.04695582,143.62,143.58,3.16800051]
[1768689971370,0.04695582,143.62,143.56,3.16800051]
[1768689971371,3.26553933,143.62,143.56,3.16800051]
[1768689971859,3.21858351,143.62,143.56,3.16800051]
[1768689972357,0.04547963,143.6,143.56,3.16800051]
[1768689973466,6.2675,143.65,143.56,3.16800051]
[1768689973661,6.2675,143.65,143.58,3.16800051]
[1768689973863,3.21858351,143.67,143.59,1.73708198]
[1768689974059,4.95566549,143.69,143.6,3.16800051]
[1768689974264,3.21858351,143.68,143.6,3.16800051]
[1768689974561,3.21858351,143.69,143.6,3.16800051]
[1768689974767,3.21858351,143.69,143.62,3.16800051]
[1768689974969,3.21858351,143.71,143.62,3.16800051]
[1768689975665,3.21858351,143.71,143.63,1.73708198]
[1768689975869,3.21858351,143.71,143.64,3.16800051]
[1768689976167,3.21858351,143.7,143.63,3.16800051]
[1768689977577,4.95566549,143.66,143.56,3.16800051]
[1768689978666,4.95566549,143.66,143.57,3.16800051]
[1768689978970,11.22276549,143.66,143.57,3.16800051]
[1768689981266,3.21858351,143.65,143.57,3.16800051]
[1768689983173,3.17214346,143.63,143.57,3.16800051]
[1768689983364,3.17214346,143.63,143.55,3.04010444]
[1768689984366,4.90922544,143.63,143.55,3.04010444]
[1768689984873,11.17762544,143.63,143.55,3.04010444]
[1768689985875,9.44054346,143.63,143.55,3.04010444]
[1768689989876,3.17214346,143.62,143.55,3.04010444]
[1768689995287,9.44094346,143.62,143.55,3.04010444]
[1768689995489,3.14884115,143.61,143.55,3.04010444]
[1768690026611,3.14884115,143.61,143.55,9.31170444]
[1768690026806,11.30807412,143.64,143.56,3.06289226]
[1768690027310,3.30079682,143.63,143.56,3.06289226]
[1768690028412,6.268,143.64,143.56,3.06289226]
[1768690028619,6.2683,143.63,143.56,3.06289226]
[1768690029015,9.56909682,143.63,143.56,3.06289226]
[1768690035318,3.30079682,143.62,143.56,3.06289226]
[1768690037017,6.2683,143.63,143.56,3.06289226]
[1768690037420,9.56909682,143.63,143.56,3.06289226]
[1768690038022,3.30079682,143.62,143.56,3.06289226]
[1768690047831,3.07240462,143.61,143.55,12.92435655]
[1768690048023,3.07240462,143.61,143.55,3.15544042]
[1768690049035,3.07240462,143.61,143.55,16.07979697]
[1768690049334,3.07240462,143.61,143.55,3.15544042]
[1768690049531,3.07240462,143.61,143.55,16.07979697]
[1768690053348,3.07240462,143.61,143.55,3.15544042]
[1768690056148,3.07240462,143.61,143.55,16.07979697]
[1768690056844,3.07240462,143.61,143.56,3.13401211]
[1768690059050,9.34170462,143.61,143.56,3.13401211]
[1768690060950,1.7392773,143.63,143.55,12.92435655]
[1768690060951,3.06771237,143.6,143.55,1.75425655]
[1768690061152,3.06771237,143.6,143.51,19.08412818]
[1768690061153,3.06771237,143.59,143.52,263.34]
[1768690061852,3.06771237,143.58,143.5,6.2736]
[1768690062055,3.06771237,143.58,143.51,263.34]
[1768690062738,9.33831237,143.58,143.51,263.34]
[1768690062952,9.33831237,143.58,143.52,1.93577822]
[1768690063252,9.33831237,143.58,143.52,265.27577822]
[1768690065945,9.33831237,143.58,143.52,267.01569886]
[1768690067251,9.33831237,143.58,143.53,1.93577822]
[1768690068655,3.06771237,143.58,143.53,1.93577822]
[1768690071757,9.33761237,143.6,143.53,1.93577822]
[1768690072057,5.19158888,143.59,143.53,1.93577822]
[1768690072249,9.33761237,143.6,143.53,1.93577822]
[1768690072549,5.19138647,143.59,143.53,1.93577822]
[1768690072749,9.33761237,143.6,143.53,1.93577822]
[1768690072953,5.19138647,143.59,143.53,1.93577822]
[1768690073244,9.33761237,143.6,143.53,1.93577822]
[1768690073445,5.18385361,143.59,143.53,1.93577822]
[1768690073660,9.33761237,143.6,143.53,1.93577822]
[1768690073853,5.18385361,143.59,143.53,1.93577822]
[1768690074054,9.33761237,143.6,143.53,1.93577822]
[1768690074261,5.18364751,143.59,143.53,1.93577822]
[1768690074557,9.33761237,143.6,143.53,1.93577822]
[1768690074757,5.18364751,143.59,143.53,1.93577822]
[1768690075059,9.33761237,143.6,143.53,1.93577822]
[1768690075253,5.18347252,143.59,143.53,1.93577822]
[1768690075454,9.33761237,143.6,143.53,1.93577822]
[1768690075657,5.18347252,143.59,143.53,1.93577822]
[1768690075955,9.33761237,143.6,143.53,1.93577822]
[1768690076155,5.18347252,143.59,143.53,1.93577822]
[1768690076355,9.33761237,143.6,143.53,1.93577822]
[1768690076655,5.18332202,143.59,143.53,1.93577822]
[1768690076959,9.33761237,143.6,143.53,1.93577822]
[1768690077258,5.18332202,143.59,143.53,1.93577822]
[1768690077460,9.33761237,143.6,143.53,1.93577822]
[1768690077656,5.18319246,143.59,143.53,1.93577822]
[1768690077857,9.33761237,143.6,143.53,1.93577822]
[1768690078057,5.18319246,143.59,143.53,1.93577822]
[1768690078359,9.33761237,143.6,143.53,1.93577822]
[1768690078565,5.18306761,143.59,143.53,1.93577822]
[1768690078853,3.06771237,143.6,143.53,1.93577822]
[1768690080556,3.06771237,143.6,143.54,1.93726543]
[1768690082758,3.06771237,143.6,143.54,8.20936543]
[1768690083966,3.06771237,143.6,143.55,1.93726543]